bitfinex/quotes_SOLUSD_20220128
["timestamp","ask_amount","ask_price","bid_price","bid_amount"]
[1643357722008,110.7,89.448,89.383,0.25]
[1643357723809,43.54531019,89.447,89.383,0.25]
[1643357724034,110.7,89.446,89.383,0.25]
[1643357724709,43.54531019,89.447,89.383,0.25]
[1643357726514,43.54531019,89.447,89.384,10.81061139]
[1643357726916,43.54531019,89.447,89.385,0.25]
[1643357727314,110.7,89.461,89.385,0.25]
[1643357727915,16.7856,89.48,89.385,0.25]
[1643357728117,55.9475,89.51,89.385,25.2225]
[1643357728320,44.03038716,89.479,89.394,6.0]
[1643357728817,110.7,89.478,89.395,0.25]
[1643357730119,44.03038716,89.479,89.396,10.81061139]
[1643357730324,44.03038716,89.479,89.397,0.25]
[1643357730525,44.01034716,89.479,89.397,47.6902]
[1643357733242,44.01034716,89.479,89.398,10.81061139]
[1643357733748,44.01034716,89.479,89.399,0.25]
[1643357734347,16.7809,89.5,89.399,0.25]
[1643357734544,17.74817418,89.52,89.399,0.25]
[1643357734545,34.52547418,89.52,89.399,0.25]
[1643357734846,2.97998076,89.567,89.422,0.30786383]
[1643357735044,55.9105,89.57,89.422,0.30786383]
[1643357735242,2.97998076,89.582,89.424,110.7]
[1643357735444,39.32496413,89.579,89.426,1.37300415]
[1643357735643,57.21737367,89.579,89.441,4.63516218]
[1643357735844,16.7686,89.57,89.442,69.1983]
[1643357736048,16.7686,89.57,89.452,6.0]
[1643357736243,16.7686,89.57,89.453,0.25]
[1643357736444,16.7686,89.57,89.453,23.0967]
[1643357736642,2.95669142,89.569,89.464,1.37300415]
[1643357736844,2.95669142,89.569,89.465,23.6227]
[1643357737042,2.95669142,89.569,89.475,6.0]
[1643357737245,16.7708,89.56,89.443,10.81061139]
[1643357737642,37.00311403,89.559,89.443,10.81061139]
[1643357737843,55.9277,89.54,89.443,10.81061139]
[1643357738044,147.43753443,89.539,89.444,5.90939425]
[1643357738444,16.7783,89.53,89.444,5.90939425]
[1643357738846,2.95669142,89.529,89.444,5.90939425]
[1643357739247,113.65669142,89.529,89.445,48.1948]
[1643357739648,2.95669142,89.528,89.445,48.1948]
[1643357739848,2.95669142,89.528,89.446,0.25]
[1643357742449,2.95669142,89.528,89.52,1.0992863]
[1643357742649,2.95669142,89.528,89.447,10.81061139]
[1643357742851,16.778,89.52,89.448,0.25]
[1643357743050,110.7,89.519,89.448,0.25]
[1643357743450,110.7,89.517,89.448,0.25]
[1643357743952,110.7,89.517,89.447,10.81061139]
[1643357744151,16.7802,89.51,89.447,10.81061139]
[1643357744351,25.5802,89.51,89.447,10.81061139]
[1643357744553,2.95669142,89.509,89.447,10.81061139]
[1643357744950,36.76721372,89.518,89.447,10.81061139]
[1643357745151,36.76721372,89.518,89.448,5.02619678]
[1643357745550,36.76721372,89.518,89.447,10.81061139]
[1643357745751,110.7,89.517,89.449,10.81061139]
[1643357745951,36.76721372,89.518,89.449,10.81061139]
[1643357746150,36.76721372,89.518,89.45,0.25]
[1643357746756,36.76721372,89.518,89.45,5.83830089]
[1643357746961,36.76721372,89.518,89.459,6.0]
[1643357747160,36.76721372,89.518,89.46,6.0]
[1643357747359,46.6366,89.583,89.461,0.25]
[1643357747559,46.6366,89.583,89.461,80.7689]
[1643357747758,2.95669142,89.582,89.461,80.7689]
[1643357748460,16.7689,89.57,89.461,80.7689]
[1643357748660,16.7689,89.57,89.462,23.6943]
[1643357748870,16.7689,89.57,89.463,0.25]
[1643357749082,2.95669142,89.569,89.472,6.0]
[1643357749271,2.95669142,89.569,89.473,25.55005174]
[1643357749475,16.7707,89.56,89.473,23.7809]
[1643357749770,113.65669142,89.559,89.462,10.81061139]
[1643357749968,159.56842196,89.559,89.462,10.81061139]
[1643357750169,19.11070449,89.558,89.462,10.81061139]
[1643357750473,50.95781608,89.557,89.462,10.81061139]
[1643357750669,53.9145075,89.557,89.462,10.81061139]
[1643357750971,16.778,89.53,89.462,10.81061139]
[1643357751170,110.7,89.529,89.462,10.81061139]
[1643357751772,2.95669142,89.528,89.462,10.81061139]
[1643357751974,2.95669142,89.528,89.452,10.81061139]
[1643357752172,16.778,89.52,89.452,10.81061139]
[1643357752372,42.85167679,89.519,89.452,10.81061139]
[1643357752571,45.80836821,89.519,89.452,10.81061139]
[1643357752772,113.65669142,89.518,89.452,10.81061139]
[1643357753175,2.95669142,89.517,89.452,10.81061139]
[1643357753374,16.7811,89.5,89.452,10.81061139]
[1643357753577,16.7811,89.5,89.381,24.7973]
[1643357753578,75.0,89.499,89.361,3.06336655]
[1643357753774,77.95669142,89.499,89.352,152.0843]
[1643357753978,55.9629,89.48,89.352,155.17912012]
[1643357754275,38.32687314,89.479,89.353,17.4738095]
[1643357754474,41.28356456,89.479,89.353,17.4738095]
[1643357754678,113.65669142,89.478,89.353,17.4738095]
[1643357754877,113.65669142,89.478,89.354,0.25]
[1643357755077,2.95669142,89.477,89.364,110.7]
[1643357755277,2.95669142,89.477,89.365,24.4275]
[1643357755480,38.32687314,89.479,89.375,0.44425452]
[1643357755776,38.32687314,89.479,89.375,6.69425452]
[1643357755978,38.32687314,89.479,89.375,0.69425452]
[1643357756379,38.32687314,89.479,89.376,6.0]
[1643357756588,38.32687314,89.479,89.377,110.7]
[1643357756783,38.32687314,89.479,89.378,24.0504]
[1643357757182,38.32687314,89.479,89.388,6.0]
[1643357757382,38.32687314,89.479,89.39,110.7]
[1643357757585,38.32687314,89.479,89.389,14.90592472]
[1643357758006,38.32687314,89.479,89.399,6.0]
[1643357758412,38.32687314,89.479,89.4,0.25]
[1643357758606,38.32687314,89.479,89.4,6.25]
[1643357761408,110.7,89.478,89.4,6.25]
[1643357762310,38.32687314,89.479,89.4,6.25]
[1643357765109,38.32687314,89.479,89.4,0.25]
[1643357765309,38.32687314,89.479,89.391,0.25]
[1643357765711,110.7,89.478,89.391,0.25]
[1643357766711,110.7,89.478,89.39,47.2713]
[1643357766913,38.32687314,89.479,89.391,0.25]
[1643357768612,2.95669142,89.478,89.391,0.25]
[1643357769013,38.32687314,89.479,89.391,0.25]
[1643357771415,38.32687314,89.479,89.391,110.95]
[1643357771615,38.32687314,89.479,89.391,0.25]
[1643357773218,16.7874,89.47,89.391,0.25]
[1643357774021,16.7874,89.47,89.39,47.2713]
[1643357774222,2.95669142,89.469,89.39,47.2713]
[1643357774422,16.79,89.45,89.339,3.06336655]
[1643357774622,110.7,89.449,89.362,6.0]
[1643357774821,113.65669142,89.449,89.362,6.0]
[1643357775020,46.23286872,89.448,89.363,23.47883813]
[1643357775219,46.23286872,89.448,89.364,24.7773]
[1643357775420,43.2761773,89.448,89.364,24.7773]
[1643357775622,110.7,89.447,89.374,6.0]
[1643357775823,110.7,89.447,89.375,0.25]
[1643357778124,110.7,89.447,89.314,0.1]
[1643357778325,16.7935,89.44,89.331,46.4128]
[1643357778823,2.95669142,89.439,89.331,46.4128]
[1643357779222,2.95669142,89.439,89.333,15.65711738]
[1643357779826,2.95669142,89.439,89.334,0.25]
[1643357780423,46.03703455,89.419,89.334,0.25]
[1643357780823,46.03703455,89.419,89.343,6.0]
[1643357781324,113.65669142,89.418,89.343,6.0]
[1643357781524,113.65669142,89.418,89.333,15.65711738]
[1643357781525,16.7987,89.41,89.333,15.65711738]
[1643357781722,110.7,89.409,89.333,15.65711738]
[1643357782124,110.7,89.409,89.331,46.4128]
[1643357783131,2.95669142,89.408,89.331,46.4128]
[1643357783528,2.95669142,89.408,89.324,13.98424178]
[1643357783728,2.95669142,89.408,89.314,0.1]
[1643357783930,2.95669142,89.408,89.312,0.35]
[1643357784335,2.95669142,89.408,89.321,6.0]
[1643357785141,110.7,89.409,89.322,0.25]
[1643357785734,110.7,89.409,89.321,6.0]
[1643357785935,110.7,89.409,89.312,24.865]
[1643357785936,2.95669142,89.408,89.313,0.1]
[1643357786135,12.35669142,89.408,89.313,0.1]
[1643357786636,2.95669142,89.407,89.313,0.1]
[1643357786835,2.95669142,89.407,89.265,3.06336655]
[1643357786836,2.95669142,89.407,89.296,0.1]
[1643357787836,56.0122,89.4,89.296,0.35]
[1643357788037,56.0122,89.4,89.369,0.00422399]
[1643357788239,2.95669142,89.399,89.369,0.00422399]
[1643357788439,110.7,89.389,89.369,0.00422399]
[1643357788841,56.0288,89.38,89.369,0.00422399]
[1643357789038,68.4888,89.38,89.369,0.00422399]
[1643357789240,105.07614991,89.379,89.286,0.1]
[1643357789538,16.8149,89.36,89.286,0.1]
[1643357789738,110.7,89.359,89.286,0.1]
[1643357789939,13.09,89.36,89.286,0.1]
[1643357789940,56.0528,89.35,89.286,0.1]
[1643357791444,48.14243741,89.339,89.286,0.1]
[1643357791661,48.14243741,89.339,89.285,44.85787631]
[1643357792262,48.14243741,89.339,89.286,0.25]
[1643357792665,48.14243741,89.339,89.285,44.85787631]
[1643357793665,56.0371,89.36,89.285,44.85787631]
[1643357793863,2.97998076,89.435,89.286,0.25]
[1643357794064,2.97998076,89.435,89.295,6.0]
[1643357794266,2.97998076,89.435,89.296,73.3796]
[1643357794463,16.6356,89.435,89.296,6.0]
[1643357794664,55.9942,89.43,89.298,16.92665877]
[1643357794863,55.9942,89.43,89.297,6.0]
[1643357794864,55.9942,89.43,89.287,28.53495771]
[1643357795064,25.84749142,89.429,89.287,28.53495771]
[1643357795268,25.84749142,89.429,89.287,11.68713575]
[1643357795463,2.95669142,89.428,89.269,11.68713575]
[1643357795664,16.7972,89.42,89.269,11.68713575]
[1643357795865,36.12898956,89.419,89.286,0.25]
[1643357796062,56.0068,89.41,89.286,0.25]
[1643357796664,2.95669142,89.409,89.277,15.13840379]
[1643357796865,113.65669142,89.409,89.277,15.13840379]
[1643357797063,16.8021,89.39,89.277,15.13840379]
[1643357797264,46.61211885,89.389,89.277,15.13840379]
[1643357797466,49.56881027,89.389,89.277,15.13840379]
[1643357797667,110.7,89.388,89.277,15.13840379]
[1643357797867,113.65669142,89.388,89.277,15.13840379]
[1643357798066,2.95669142,89.387,89.277,15.13840379]
[1643357799075,2.95669142,89.387,89.27,23.1587]
[1643357799469,16.805,89.37,89.27,23.1587]
[1643357799873,2.95669142,89.369,89.27,23.1587]
[1643357800078,38.83525363,89.368,89.27,23.1587]
[1643357800475,2.95669142,89.367,89.27,23.1587]
[1643357800872,16.8099,89.35,89.27,23.1587]
[1643357801071,110.7,89.348,89.27,23.1587]
[1643357801472,110.7,89.348,89.26,77.2623]
[1643357801673,110.7,89.348,89.189,111.9]
[1643357801674,2.95669142,89.347,89.211,45.4813]
[1643357801872,16.8126,89.33,89.211,45.4813]
[1643357802070,110.7,89.329,89.212,78.4998]
[1643357802672,43.97037547,89.328,89.244,17.89154741]
[1643357802872,110.7,89.327,89.244,17.89154741]
[1643357803276,110.7,89.327,89.245,24.8413]
[1643357803876,110.7,89.327,89.246,23.6315]
[1643357804278,110.7,89.327,89.247,0.25]
[1643357804476,43.97037547,89.328,89.247,0.25]
[1643357804675,43.97037547,89.328,89.246,23.6315]
[1643357804876,110.7,89.327,89.26,36.07635484]
[1643357805277,110.7,89.327,89.261,0.25]
[1643357805780,110.7,89.327,89.246,23.6315]
[1643357805979,16.8159,89.32,89.246,23.6315]
[1643357806178,110.7,89.319,89.246,23.6315]
[1643357806779,110.7,89.319,89.248,35.51750899]
[1643357806979,110.7,89.319,89.2,41.5425]
[1643357807180,120.77,89.319,89.213,47.4779]
[1643357807379,120.77,89.319,89.222,6.0]
[1643357807578,120.77,89.319,89.223,6.0]
[1643357807579,16.8176,89.31,89.223,6.0]
[1643357807780,110.7,89.309,89.224,0.25]
[1643357808081,12.4336842,89.308,89.232,37.85545257]
[1643357808282,12.4336842,89.308,89.233,0.25]
[1643357808510,110.7,89.307,89.233,0.25]
[1643357808782,110.7,89.307,89.213,47.4779]
[1643357808981,12.4336842,89.308,89.213,47.4779]
[1643357809182,12.4336842,89.308,89.223,6.0]
[1643357809580,16.8193,89.3,89.213,47.4779]
[1643357810482,21.0936842,89.308,89.214,2.28754067]
[1643357810483,12.4336842,89.308,89.214,2.28754067]
[1643357810681,12.4336842,89.308,89.214,112.98754067]
[1643357810987,12.4336842,89.308,89.215,0.25]
[1643357811383,12.4336842,89.308,89.214,0.25]
[1643357811984,12.4336842,89.308,89.215,2.28754067]
[1643357812383,12.4336842,89.308,89.216,0.25]
[1643357812787,110.7,89.307,89.216,0.25]
[1643357813084,16.8199,89.3,89.213,47.4779]
[1643357814286,16.8199,89.3,89.214,0.25]
[1643357815287,16.8199,89.3,89.213,47.4779]
[1643357815487,110.7,89.299,89.213,47.4779]
[1643357816689,16.8199,89.3,89.213,47.4779]
[1643357816892,12.4336842,89.308,89.214,2.53754067]
[1643357817290,12.4336842,89.308,89.215,2.28754067]
[1643357817689,110.7,89.307,89.216,0.25]
[1643357817890,124.43,89.307,89.214,0.25]
[1643357818290,13.73,89.307,89.214,0.25]
[1643357819491,110.7,89.306,89.214,0.25]
[1643357819892,12.4336842,89.308,89.214,0.25]
[1643357821093,110.7,89.307,89.214,0.25]
[1643357821495,110.7,89.307,89.213,47.4779]
[1643357821496,122.01,89.307,89.213,47.4779]
[1643357821695,16.8199,89.3,89.213,47.4779]
[1643357822295,16.8199,89.3,89.212,78.4998]
[1643357822497,16.8199,89.3,89.213,49.21670043]
[1643357823496,16.8199,89.3,89.212,78.4998]
[1643357823696,16.8199,89.3,89.193,48.5785]
[1643357823899,110.7,89.299,89.193,48.5785]
[1643357824496,110.7,89.299,89.194,37.9149994]
[1643357824796,12.4336842,89.308,89.195,0.25]
[1643357825499,12.4336842,89.308,89.204,6.0]
[1643357825704,12.4336842,89.308,89.205,23.4666]
[1643357825900,16.8219,89.3,89.169,3.06336655]
[1643357826107,16.8219,89.3,89.167,48.8859]
[1643357826298,18.6953923,89.299,89.167,48.8859]
[1643357826501,18.6953923,89.299,89.168,110.7]
[1643357826699,110.7,89.305,89.184,45.43244507]
[1643357827102,16.821,89.3,89.185,2.28754067]
[1643357827303,12.4336842,89.308,89.186,0.25]
[1643357827503,12.4336842,89.308,89.195,6.0]
[1643357827701,2.97998076,89.353,89.197,6.0]
[1643357827901,2.97998076,89.367,89.199,3.06336655]
[1643357828102,2.97998076,89.367,89.209,6.0]
[1643357828310,3.03390961,89.363,89.21,0.25]
[1643357828600,3.03390961,89.363,89.21,22.54320484]
[1643357828901,2.97998076,89.358,89.212,110.7]
[1643357829106,16.813,89.34,89.222,6.0]
[1643357829300,1.51689755,89.336,89.223,101.7239]
[1643357829501,1.51689755,89.323,89.223,101.7239]
[1643357829703,35.91003698,89.322,89.223,77.449]
[1643357829900,1.51689755,89.317,89.223,77.449]
[1643357830102,1.51689755,89.319,89.223,77.449]
[1643357830302,1.51689755,89.321,89.223,77.449]
[1643357830502,1.51689755,89.321,89.225,37.19268436]
[1643357830903,1.51689755,89.317,89.225,37.19268436]
[1643357831401,16.8207,89.3,89.225,37.19268436]
[1643357831604,110.7,89.298,89.225,37.19268436]
[1643357833009,16.8237,89.29,89.203,1.5514495]
[1643357833208,16.8237,89.29,89.197,99.3476]
[1643357833407,1.51689755,89.288,89.197,99.3476]
[1643357833607,1.51689755,89.286,89.197,99.3476]
[1643357834007,37.42693453,89.285,89.198,36.75223599]
[1643357834407,16.828,89.27,89.198,36.75223599]
[1643357834607,1.51689755,89.288,89.199,2.53785606]
[1643357834810,1.51689755,89.304,89.199,2.28785606]
[1643357835010,1.51689755,89.31,89.201,1.5514495]
[1643357835209,1.51689755,89.296,89.198,36.75223599]
[1643357835410,46.1541349,89.296,89.198,36.75223599]
[1643357835608,16.8241,89.29,89.198,36.75223599]
[1643357835809,46.1541349,89.296,89.198,36.75223599]
[1643357836812,16.823,89.29,89.198,36.75223599]
[1643357837212,25.313,89.29,89.197,99.3476]
[1643357838012,110.7,89.289,89.197,99.3476]
[1643357838211,110.7,89.289,89.198,40.98499572]
[1643357838412,16.8256,89.28,89.197,99.3476]
[1643357839315,110.7,89.279,89.197,99.3476]
[1643357839511,9.28520013,89.278,89.197,99.3476]
[1643357839711,110.7,89.277,89.197,99.3476]
[1643357840112,16.8274,89.27,89.197,99.3476]
[1643357842343,110.7,89.269,89.197,99.3476]
[1643357842743,9.28520013,89.278,89.197,99.3476]
[1643357843244,9.28520013,89.278,89.183,3.8696]
[1643357843448,22.96520013,89.278,89.183,3.8696]
[1643357843852,16.11,89.27,89.183,3.8696]
[1643357844246,32.9377,89.27,89.183,3.8696]
[1643357844457,1.51689755,89.257,89.183,3.8696]
[1643357844646,16.11,89.25,89.183,3.8696]
[1643357844846,16.11,89.24,89.183,3.8696]
[1643357845046,110.7,89.239,89.183,3.8696]
[1643357845448,43.44271849,89.238,89.183,3.8696]
[1643357845646,52.65271849,89.238,89.183,3.8696]
[1643357845848,110.7,89.237,89.183,3.8696]
[1643357846450,110.7,89.237,89.132,1.5514495]
[1643357846649,16.8347,89.23,89.125,1.5514495]
[1643357846854,32.9447,89.23,89.124,1.5514495]
[1643357847250,32.9447,89.23,89.122,1.6514495]
[1643357847448,32.9447,89.23,89.122,0.1]
[1643357847648,36.84024202,89.229,89.122,41.70749091]
[1643357847949,36.84024202,89.229,89.128,2.33259707]
[1643357848248,36.84024202,89.229,89.129,0.25]
[1643357848848,36.84024202,89.229,89.135,1.5514495]
[1643357849050,36.84024202,89.229,89.136,1.5514495]
[1643357849252,36.84024202,89.229,89.137,26.00277406]
[1643357849450,36.84024202,89.229,89.139,1.5514495]
[1643357849656,36.84024202,89.229,89.138,0.1]
[1643357849657,36.84024202,89.229,89.14,24.2423]
[1643357850855,36.84024202,89.229,89.139,0.1]
[1643357852461,36.84024202,89.229,89.138,46.6025]
[1643357852661,36.84024202,89.229,89.139,0.1]
[1643357853869,36.84024202,89.229,89.139,0.35]
[1643357854870,36.84024202,89.229,89.139,0.1]
[1643357856073,16.8375,89.22,89.139,0.1]
[1643357856272,32.9475,89.22,89.139,0.1]
[1643357860187,110.7,89.219,89.139,0.1]
[1643357860790,110.7,89.219,89.139,0.35]
[1643357862394,110.7,89.219,89.139,0.1]
[1643357864796,36.84024202,89.229,89.146,0.30229729]
[1643357865395,36.84024202,89.229,89.139,0.35]
[1643357865595,36.84024202,89.229,89.147,2.4962]
[1643357865800,36.84024202,89.229,89.148,0.25]
[1643357866799,110.7,89.228,89.148,0.25]
[1643357867006,110.7,89.228,89.147,2.4962]
[1643357867506,123.13,89.228,89.147,2.4962]
[1643357869201,123.13,89.228,89.14,2.4962]
[1643357869402,16.8378,89.22,89.14,2.4962]
[1643357869902,110.7,89.219,89.14,2.4962]
[1643357870104,113.65669142,89.219,89.14,2.4962]
[1643357870302,19.09808982,89.218,89.107,1.5514495]
[1643357870502,19.09808982,89.218,89.103,46.2359]
[1643357870503,16.8397,89.21,89.103,46.2359]
[1643357870706,16.11,89.2,89.103,46.2359]
[1643357870901,12.13329302,89.199,89.107,44.7383212]
[1643357871103,110.7,89.198,89.107,44.7383212]
[1643357871306,110.7,89.198,89.103,46.2359]
[1643357871809,110.7,89.179,89.103,46.2359]
[1643357872204,16.11,89.19,89.103,46.2359]
[1643357872402,16.11,89.19,89.115,1.5514495]
[1643357872605,2.95669142,89.219,89.115,1.5514495]
[1643357872804,2.95669142,89.219,89.121,20.73929771]
[1643357873003,1.51689755,89.242,89.133,1.5514495]
[1643357873203,1.51689755,89.252,89.143,1.5514495]
[1643357873405,1.51689755,89.26,89.152,1.5514495]
[1643357873605,43.55513881,89.259,89.162,6.0]
[1643357873809,43.55513881,89.259,89.163,121.8607]
[1643357874006,43.55513881,89.259,89.167,6.0]
[1643357874304,43.55513881,89.259,89.174,45.11127789]
[1643357874604,43.55513881,89.259,89.184,6.0]
[1643357874804,1.51689755,89.269,89.185,0.25]
[1643357875005,1.51689755,89.277,89.185,6.25]
[1643357875307,1.51689755,89.283,89.185,6.25]
[1643357875505,1.51689755,89.286,89.19,6.0]
[1643357875706,1.51689755,89.288,89.191,110.7]
[1643357875912,1.51689755,89.3,89.21,16.812]
[1643357876106,1.51689755,89.3,89.22,6.0]
[1643357876307,47.29620948,89.301,89.221,24.6754]
[1643357876509,1.51689755,89.313,89.221,30.6754]
[1643357876710,1.51689755,89.313,89.222,24.59]
[1643357876908,1.51689755,89.321,89.222,24.59]
[1643357877108,1.51689755,89.319,89.232,6.0]
[1643357877308,1.51689755,89.327,89.233,23.1815]
[1643357877510,43.03256374,89.326,89.243,6.0]
[1643357877918,153.73256374,89.326,89.234,25.09518707]
[1643357878316,1.51689755,89.323,89.234,25.09518707]
[1643357878520,1.51689755,89.325,89.234,25.09518707]
[1643357878718,153.24946129,89.326,89.234,25.09518707]
[1643357879518,2.95669142,89.325,89.234,25.09518707]
[1643357881422,153.24946129,89.326,89.234,25.09518707]
[1643357882020,153.24946129,89.326,89.244,6.0]
[1643357882223,153.24946129,89.326,89.245,24.2265]
[1643357882824,42.54946129,89.326,89.245,24.2265]
[1643357883028,42.54946129,89.326,89.246,0.25]
[1643357883724,42.54946129,89.326,89.245,24.2265]
[1643357884326,42.54946129,89.326,89.246,0.25]
[1643357884728,42.54946129,89.326,89.245,24.2265]
[1643357884928,42.54946129,89.326,89.246,0.25]
[1643357885337,2.95669142,89.353,89.246,0.25]
[1643357885542,2.97998076,89.375,89.255,6.0]
[1643357885741,10.0,89.39,89.26,16.11]
[1643357886237,46.76314822,89.389,89.27,6.0]
[1643357886437,46.76314822,89.389,89.271,23.8951]
[1643357886736,46.76314822,89.389,89.282,31.08253505]
[1643357886939,10.0,89.39,89.29,16.11]
[1643357887139,10.0,89.39,89.3,6.0]
[1643357887340,10.0,89.39,89.301,24.4047]
[1643357887542,2.97998076,89.442,89.31,16.7935]
[1643357887840,55.986,89.46,89.31,16.7935]
[1643357887841,2.97998076,89.459,89.32,126.81]
[1643357888043,25.44595449,89.487,89.32,126.81]
[1643357888044,34.88726963,89.458,89.33,6.0]
[1643357888338,34.88726963,89.458,89.331,0.25]
[1643357888539,34.88726963,89.458,89.34,16.7862]
[1643357888838,17.82697871,89.477,89.35,16.11]
[1643357889039,17.82697871,89.477,89.36,6.0]
[1643357889238,17.82697871,89.477,89.361,23.8146]
[1643357889439,2.95669142,89.476,89.361,6.0]
[1643357889640,41.40991047,89.475,89.362,29.60703237]
[1643357889843,17.08052211,89.459,89.362,29.60703237]
[1643357890041,17.08052211,89.459,89.363,23.5735]
[1643357890443,2.95669142,89.458,89.363,23.5735]
[1643357890840,2.95669142,89.458,89.364,0.25]
[1643357891041,17.08052211,89.459,89.364,0.25]
[1643357891643,17.08052211,89.459,89.373,6.0]
[1643357891843,17.08052211,89.459,89.374,24.9072]
[1643357892242,2.95669142,89.458,89.374,24.9072]
[1643357892442,2.95669142,89.458,89.374,24.6572]
[1643357892643,15.32669142,89.458,89.362,29.60703237]
[1643357892849,17.82697871,89.457,89.362,29.60703237]
[1643357893042,20.78367013,89.457,89.362,29.60703237]
[1643357893244,17.08052211,89.459,89.362,29.60703237]
[1643357893245,17.08052211,89.459,89.362,31.90638524]
[1643357893444,17.08052211,89.459,89.372,6.0]
[1643357893743,17.08052211,89.459,89.373,24.1808]
[1643357894043,17.08052211,89.459,89.373,24.4308]
[1643357894243,17.08052211,89.459,89.373,24.1808]
[1643357895645,2.95669142,89.458,89.341,75.6417]
[1643357895846,2.95669142,89.458,89.351,24.2006]
[1643357896043,20.78367013,89.458,89.351,24.2006]
[1643357896244,2.95669142,89.458,89.351,24.2006]
[1643357896545,20.78367013,89.457,89.352,36.54290123]
[1643357896942,2.95669142,89.456,89.353,24.7261]
[1643357897342,17.82697871,89.457,89.353,24.7261]
[1643357897343,16.793,89.45,89.353,24.7261]
[1643357898546,2.95669142,89.449,89.353,24.7261]
[1643357898947,16.7952,89.44,89.341,75.6417]
[1643357899146,32.9052,89.44,89.31,16.11]
[1643357899347,30.89162676,89.439,89.302,47.9468]
[1643357899545,55.9994,89.43,89.302,47.9468]
[1643357899747,16.11,89.42,89.302,47.9468]
[1643357899945,16.7999,89.41,89.303,48.09457919]
[1643357900146,22.61782172,89.409,89.303,48.09457919]
[1643357900345,22.61782172,89.409,89.304,0.25]
[1643357900645,113.65669142,89.408,89.304,2.29265125]
[1643357900948,2.95669142,89.407,89.303,48.09457919]
[1643357902044,110.7,89.408,89.304,2.54265125]
[1643357902446,110.7,89.408,89.305,2.29265125]
[1643357902845,110.7,89.408,89.306,0.25]
[1643357903846,110.7,89.408,89.304,0.25]
[1643357904447,2.95669142,89.407,89.304,0.25]
[1643357904848,22.61782172,89.409,89.304,110.95]
[1643357905047,22.61782172,89.409,89.314,6.0]
[1643357905248,22.61782172,89.409,89.315,23.8862]
[1643357905648,22.61782172,89.409,89.317,12.59498823]
[1643357905849,22.61782172,89.409,89.318,0.25]
[1643357906053,2.95669142,89.408,89.318,0.25]
[1643357906348,2.97998076,89.446,89.318,0.25]
[1643357906551,2.97998076,89.452,89.33,16.11]
[1643357906749,3.02023891,89.463,89.331,124.0199]
[1643357906949,3.02023891,89.463,89.34,6.0]
[1643357907149,2.95669142,89.462,89.341,6.0]
[1643357907351,3.02023891,89.461,89.342,67.88220052]
[1643357907549,3.02023891,89.461,89.342,73.88220052]
[1643357907752,3.02023891,89.461,89.343,2.29265125]
[1643357907950,2.95669142,89.46,89.35,16.7857]
[1643357908152,2.95669142,89.46,89.353,6.0]
[1643357908354,3.02520505,89.459,89.361,17.1522669]
[1643357908752,2.95669142,89.458,89.362,0.25]
[1643357908952,3.02520505,89.457,89.362,23.3091]
[1643357909352,2.95669142,89.456,89.362,23.3091]
[1643357910154,16.7938,89.44,89.362,23.3091]
[1643357910356,26.1138,89.44,89.331,76.0151]
[1643357910558,13.82558922,89.439,89.331,76.0151]
[1643357910756,3.02523729,89.438,89.331,76.0151]
[1643357910956,110.7,89.437,89.331,76.0151]
[1643357911158,3.02523729,89.436,89.332,39.95959548]
[1643357911356,16.796,89.43,89.319,47.5804]
[1643357911583,16.11,89.42,89.29,16.11]
[1643357911758,110.7,89.418,89.29,16.11]
[1643357912056,3.02501959,89.417,89.3,6.0]
[1643357912257,5.98171101,89.417,89.3,6.0]
[1643357912458,110.7,89.415,89.301,43.0309966]
[1643357912958,17.55698735,89.399,89.302,0.25]
[1643357913157,17.55698735,89.399,89.302,23.1046]
[1643357913457,113.65669142,89.398,89.302,23.1046]